[Event "Dutch Open-ch 2019"]
[Site "Dieren"]
[Date "2019.07.25"]
[Round "3.5"]
[White "Vrolijk, Liam"]
[Black "Bosboom, Manuel"]
[Result "1/2-1/2"]
[ECO "A41"]
[WhiteElo "2478"]
[BlackElo "2418"]
[Annotator "ChessBase"]
[PlyCount "47"]
[EventDate "2019.07.23"]
[EventType "swiss"]
[EventCountry "NED"]
[SourceTitle "playchess.com"]
[Source "ChessBase"]
[SourceQuality "1"]
[TimeControl "40/5400+30:1800+30"]

1. d4 {[%emt 0:00:00]} d6 {[%emt 0:00:06]} 2. Nf3 {[%emt 0:00:25]} Bg4 {[%emt 0:03:08]} 3. e4 {[%emt 0:01:55]} Nd7 {[%emt 0:03:01]} 4. Bd3 {[%emt 0:10:21]} e5 {[%emt 0:02:34]} 5. c3 {[%emt 0:06:09]} Ngf6 {[%emt 0:05:29]} 6. O-O {[%emt 0:03:32]} Be7 {[%emt 0:03:36]} 7. Re1 {[%emt 0:01:59]} O-O {[%emt 0:01:12]} 8. Nbd2 {[%emt 0:01:27]} Re8 {[%emt 0:15:57]} 9. h3 {[%emt 0:02:41]} Bh5 {[%emt 0:03:15]} 10. Nf1 {[%emt 0:00:53]} Bf8 {[%emt 0:19:06]} 11. Ng3 {[%emt 0:08:48]} Bg6 {[%emt 0:00:14]} 12. Nh4 {[%emt 0:02:38]} d5 {[%emt 0:07:12]} 13. Nxg6 {[%emt 0:04:49]} hxg6 {[%emt 0:00:12]} 14. dxe5 {[%emt 0:05:33]} Nxe5 {[%emt 0:00:56]} 15. Bc2 {[%emt 0:02:46]} Bc5 {[%emt 0:11:49]} 16. exd5 {[%emt 0:04:53]} Qxd5 {[%emt 0:08:22]} 17. Ne4 {[%emt 0:04:11]} Qxd1 {[%emt 0:03:26]} 18. Nxf6+ {[%emt 0:00:39]} gxf6 {[%emt 0:00:02]} 19. Rxd1 {[%emt 0:00:10]} Bb6 {[%emt 0:03:15]} 20. Kf1 {[%emt 0:02:28]} Kg7 {[%emt 0:02:33]} 21. Bf4 {[%emt 0:02:55]} Re7 {[%emt 0:01:22]} 22. Bb3 {[%emt 0:04:29]} Rae8 {[%emt 0:00:32]} 23. Rd2 {[%emt 0:00:14]} g5 {[%emt 0:00:53]} 24. Bxe5 {[%emt 0:03:33]} 1/2-1/2

[Event "Dutch Open-ch 2019"]
[Site "Dieren"]
[Date "2019.07.25"]
[Round "3.6"]
[White "Van Foreest, Lucas"]
[Black "Ojas Kulkarni"]
[Result "1-0"]
[ECO "C72"]
[WhiteElo "2521"]
[BlackElo "2251"]
[Annotator "ChessBase"]
[PlyCount "63"]
[EventDate "2019.07.23"]
[EventType "swiss"]
[EventCountry "NED"]
[SourceTitle "playchess.com"]
[Source "ChessBase"]
[SourceQuality "1"]
[TimeControl "40/5400+30:1800+30"]

1. e4 {[%emt 0:00:00]} e5 {[%emt 0:00:00]} 2. Nf3 {[%emt 0:00:00]} Nc6 {[%emt 0:00:00]} 3. Bb5 {[%emt 0:00:00]} a6 {[%emt 0:00:00]} 4. Ba4 {[%emt 0:00:00]} d6 {[%emt 0:00:00]} 5. O-O {[%emt 0:00:00]} Bd7 {[%emt 0:00:06]} 6. c3 {[%emt 0:00:21]} g5 {[%emt 0:00:54]} 7. d4 {[%emt 0:03:15]} g4 {[%emt 0:00:18]} 8. Ne1 {[%emt 0:01:37]} h5 {[%emt 0:00:06]} 9. Be3 {[%emt 0:00:33]} Bg7 {[%emt 0:01:53]} 10. f4 {[%emt 0:00:34]} exd4 {[%emt 0:00:05]} 11. cxd4 {[%emt 0:00:50]} Na5 {[%emt 0:00:20]} 12. Nc3 {[%emt 0:12:38]} Nc4 {[%emt 0:06:17]} 13. Bf2 {[%emt 0:00:21]} b5 {[%emt 0:03:12]} 14. Bb3 {[%emt 0:00:04]} Nxb2 {[%emt 0:00:06]} 15. Qe2 {[%emt 0:00:23]} Na4 {[%emt 0:00:05]} 16. Nxa4 {[%emt 0:00:59]} bxa4 {[%emt 0:00:43]} 17. Bc4 {[%emt 0:00:01]} Ne7 {[%emt 1:24:25]} 18. Nc2 {[%emt 0:06:41]} d5 {[%emt 0:00:00]} 19. exd5 {[%emt 0:01:14]} Bf6 {[%emt 0:00:00]} 20. f5 {[%emt 0:03:48]} Kf8 {[%emt 0:00:00]} 21. Bg3 {[%emt 0:02:07]} Bb5 {[%emt 0:00:00]} 22. Bxb5 {[%emt 0:05:02]} axb5 {[%emt 0:00:00]} 23. Be5 {[%emt 0:00:05]} Nxd5 {[%emt 0:00:00]} 24. Qxb5 {[%emt 0:00:05]} Kg7 {[%emt 0:00:00]} 25. Qe2 {[%emt 0:00:32]} Re8 {[%emt 0:00:00]} 26. Rae1 {[%emt 0:05:21]} Rb8 {[%emt 0:00:00]} 27. h3 {[%emt 0:02:21]} Rb2 {[%emt 0:00:00]} 28. hxg4 {[%emt 0:00:38]} Nb4 {[%emt 0:00:00]} 29. Bxf6+ {[%emt 0:02:15]} Qxf6 {[%emt 0:00:00]} 30. Qxe8 {[%emt 0:01:04]} Nxc2 {[%emt 0:00:00]} 31. g5 {[%emt 0:02:07]} Qxd4+ {[%emt 0:00:00]} 32. Rf2 {[%emt 0:00:04]} 1-0

[Event "Dutch Open-ch 2019"]
[Site "Dieren"]
[Date "2019.07.25"]
[Round "3.7"]
[White "Kolbus, Dietmar"]
[Black "Ikonnikov, Vyacheslav"]
[Result "0-1"]
[ECO "E15"]
[WhiteElo "2281"]
[BlackElo "2499"]
[Annotator "ChessBase"]
[PlyCount "106"]
[EventDate "2019.07.23"]
[EventType "swiss"]
[EventCountry "NED"]
[SourceTitle "playchess.com"]
[Source "ChessBase"]
[SourceQuality "1"]
[TimeControl "40/5400+30:1800+30"]

1. d4 {[%emt 0:01:13]} Nf6 {[%emt 0:00:06]} 2. c4 {[%emt 0:00:38]} e6 {[%emt 0:00:18]} 3. Nf3 {[%emt 0:00:11]} b6 {[%emt 0:00:52]} 4. g3 {[%emt 0:00:20]} Ba6 {[%emt 0:00:50]} 5. Nbd2 {[%emt 0:00:56]} Bb7 {[%emt 0:01:04]} 6. Bg2 {[%emt 0:00:11]} c5 {[%emt 0:01:02]} 7. O-O {[%emt 0:00:30]} cxd4 {[%emt 0:01:31]} 8. Nxd4 {[%emt 0:00:19]} Bxg2 {[%emt 0:00:13]} 9. Kxg2 {[%emt 0:00:06]} Qc8 {[%emt 0:00:44]} 10. e3 {[%emt 0:07:19]} Nc6 {[%emt 0:05:34]} 11. Nxc6 {[%emt 0:01:34]} Qxc6+ {[%emt 0:02:12]} 12. Qf3 {[%emt 0:00:09]} Rc8 {[%emt 0:01:55]} 13. Qxc6 {[%emt 0:00:30]} Rxc6 {[%emt 0:00:05]} 14. b3 {[%emt 0:00:46]} Bb4 {[%emt 0:00:34]} 15. a3 {[%emt 0:01:20]} Bc3 {[%emt 0:04:13]} 16. Ra2 {[%emt 0:00:13]} d5 {[%emt 0:05:08]} 17. Bb2 {[%emt 0:04:15]} Bxb2 {[%emt 0:13:18]} 18. Rxb2 {[%emt 0:00:05]} dxc4 {[%emt 0:00:06]} 19. Nxc4 {[%emt 0:00:20]} b5 {[%emt 0:01:57]} 20. Ne5 {[%emt 0:11:41]} Rc3 {[%emt 0:03:52]} 21. Rd1 {[%emt 0:01:44]} Ke7 {[%emt 0:00:50]} 22. Rd4 {[%emt 0:00:33]} Rhc8 {[%emt 0:10:57]} 23. e4 {[%emt 0:04:45]} g5 {[%emt 0:02:30]} 24. a4 {[%emt 0:03:10]} R8c5 {[%emt 0:02:56]} 25. Nf3 {[%emt 0:03:54]} g4 {[%emt 0:03:53]} 26. Ne1 {[%emt 0:01:55]} e5 {[%emt 0:11:07]} 27. Rb4 {[%emt 0:00:15]} a5 {[%emt 0:00:04]} 28. Rxb5 {[%emt 0:00:18]} Rxb5 {[%emt 0:00:06]} 29. axb5 {[%emt 0:00:24]} Nxe4 {[%emt 0:00:08]} 30. f3 {[%emt 0:01:43]} Nc5 {[%emt 0:11:31]} 31. fxg4 {[%emt 0:03:38]} Rxb3 {[%emt 0:00:52]} 32. Rxb3 {[%emt 0:02:14]} Nxb3 {[%emt 0:00:04]} 33. Kf3 {[%emt 0:00:29]} a4 {[%emt 0:04:42]} 34. Ke4 {[%emt 0:01:06]} Kd6 {[%emt 0:00:20]} 35. Nc2 {[%emt 0:05:14]} Nc5+ {[%emt 0:03:02]} 36. Ke3 {[%emt 0:06:40]} Kd5 {[%emt 0:03:18]} 37. Na3 {[%emt 0:00:19]} Nd7 {[%emt 0:00:52]} 38. g5 {[%emt 0:02:46]} Kc5 {[%emt 0:00:13]} 39. Ke4 {[%emt 0:00:44]} Kb4 {[%emt 0:00:42]} 40. Nb1 {[%emt 0:00:13]} Kxb5 {[%emt 0:00:42]} 41. Kd5 {[%emt 0:33:17]} Kb4 {[%emt 0:30:21]} 42. h4 {[%emt 0:01:17]} a3 {[%emt 0:01:49]} 43. Nxa3 {[%emt 0:00:10]} Kxa3 {[%emt 0:00:03]} 44. h5 {[%emt 0:00:46]} Kb4 {[%emt 0:00:25]} 45. Kd6 {[%emt 0:06:06]} e4 {[%emt 0:00:17]} 46. Kxd7 {[%emt 0:00:06]} e3 {[%emt 0:00:16]} 47. Ke7 {[%emt 0:00:08]} e2 {[%emt 0:00:10]} 48. Kxf7 {[%emt 0:00:07]} e1=Q {[%emt 0:00:11]} 49. g6 {[%emt 0:00:39]} hxg6 {[%emt 0:00:53]} 50. h6 {[%emt 0:00:56]} Qxg3 {[%emt 0:00:22]} 51. h7 {[%emt 0:00:06]} Qe5 {[%emt 0:00:16]} 52. Kxg6 {[%emt 0:00:13]} Kc5 {[%emt 0:00:16]} 53. Kf7 {[%emt 0:00:06]} Qh8 {[%emt 0:00:05]} 0-1

[Event "Dutch Open-ch 2019"]
[Site "Dieren"]
[Date "2019.07.25"]
[Round "3.8"]
[White "Ashwath, R.."]
[Black "Schoppen, Casper"]
[Result "0-1"]
[ECO "E21"]
[WhiteElo "2365"]
[BlackElo "2493"]
[Annotator "ChessBase"]
[PlyCount "72"]
[EventDate "2019.07.23"]
[EventType "swiss"]
[EventCountry "NED"]
[SourceTitle "playchess.com"]
[Source "ChessBase"]
[SourceQuality "1"]
[TimeControl "40/5400+30:1800+30"]

1. d4 {[%emt 0:00:53]} Nf6 {[%emt 0:00:03]} 2. c4 {[%emt 0:00:35]} e6 {[%emt 0:00:22]} 3. Nc3 {[%emt 0:00:05]} Bb4 {[%emt 0:00:31]} 4. Nf3 {[%emt 0:00:06]} O-O {[%emt 1:31:04]} 5. Bg5 {[%emt 0:00:53]} d6 {[%emt 0:00:00]} 6. Rc1 {[%emt 0:09:11]} Nbd7 {[%emt 0:00:00]} 7. e3 {[%emt 0:02:21]} b6 {[%emt 0:00:00]} 8. Bd3 {[%emt 0:04:03]} Bb7 {[%emt 0:00:00]} 9. O-O {[%emt 0:00:39]} Bxc3 {[%emt 0:00:00]} 10. bxc3 {[%emt 0:05:32]} h6 {[%emt 0:00:00]} 11. Bh4 {[%emt 0:00:29]} g5 {[%emt 0:00:00]} 12. Nxg5 {[%emt 0:13:49]} hxg5 {[%emt 0:00:00]} 13. Bxg5 {[%emt 0:00:04]} Kg7 {[%emt 0:00:00]} 14. e4 {[%emt 0:04:37]} Rh8 {[%emt 0:00:00]} 15. f4 {[%emt 0:05:55]} Qg8 {[%emt 0:00:00]} 16. e5 {[%emt 0:04:35]} Ne4 {[%emt 0:00:00]} 17. Qf3 {[%emt 0:03:24]} Qh7 {[%emt 0:00:00]} 18. Bxe4 {[%emt 0:09:08]} Bxe4 {[%emt 0:00:00]} 19. Qg3 {[%emt 0:00:25]} Qg6 {[%emt 0:00:00]} 20. Rce1 {[%emt 0:04:32]} Bf5 {[%emt 0:00:00]} 21. d5 {[%emt 0:07:11]} Rae8 {[%emt 0:00:00]} 22. Re3 {[%emt 0:05:40]} Kf8 {[%emt 0:00:00]} 23. dxe6 {[%emt 0:06:51]} fxe6 {[%emt 0:00:00]} 24. Qf3 {[%emt 0:01:56]} Nxe5 {[%emt 0:00:00]} 25. Rxe5 {[%emt 0:02:52]} dxe5 {[%emt 0:00:00]} 26. g4 {[%emt 0:00:07]} Be4 {[%emt 0:00:33]} 27. Qe3 {[%emt 0:00:40]} Kg8 {[%emt 0:00:40]} 28. h4 {[%emt 0:01:26]} exf4 {[%emt 0:01:34]} 29. Qxf4 {[%emt 0:02:50]} e5 {[%emt 0:00:15]} 30. Qe3 {[%emt 0:01:12]} Bb7 {[%emt 0:01:22]} 31. Kh2 {[%emt 0:02:16]} Rf8 {[%emt 0:00:58]} 32. Re1 {[%emt 0:00:45]} Qc6 {[%emt 0:00:43]} 33. Qd2 {[%emt 0:00:16]} Qf3 {[%emt 0:01:09]} 34. Re3 {[%emt 0:01:03]} Qh1+ {[%emt 0:00:38]} 35. Kg3 {[%emt 0:00:02]} Qg1+ {[%emt 0:00:16]} 36. Kh3 {[%emt 0:00:03]} Bf3 {[%emt 0:00:37]} 0-1

[Event "Dutch Open-ch 2019"]
[Site "Dieren"]
[Date "2019.07.25"]
[Round "3.9"]
[White "Mohite, Ranveer"]
[Black "Buckels, Valentin"]
[Result "0-1"]
[ECO "C77"]
[WhiteElo "2229"]
[BlackElo "2451"]
[Annotator "ChessBase"]
[PlyCount "140"]
[EventDate "2019.07.23"]
[EventType "swiss"]
[EventCountry "NED"]
[SourceTitle "playchess.com"]
[Source "ChessBase"]
[SourceQuality "1"]
[TimeControl "40/5400+30:1800+30"]

1. e4 {[%emt 0:02:05]} e5 {[%emt 0:00:00]} 2. Nf3 {[%emt 0:00:10]} Nc6 {[%emt 0:00:00]} 3. Bb5 {[%emt 0:00:19]} a6 {[%emt 0:00:00]} 4. Ba4 {[%emt 0:00:11]} Nf6 {[%emt 0:00:05]} 5. O-O {[%emt 0:00:17]} Be7 {[%emt 0:00:05]} 6. d3 {[%emt 0:00:33]} b5 {[%emt 0:00:09]} 7. Bb3 {[%emt 0:00:07]} d6 {[%emt 0:00:06]} 8. a3 {[%emt 0:00:25]} O-O {[%emt 0:00:24]} 9. Nc3 {[%emt 0:00:17]} Bb7 {[%emt 0:00:16]} 10. Nd5 {[%emt 0:04:19]} Nxd5 {[%emt 0:02:17]} 11. Bxd5 {[%emt 0:01:11]} Qc8 {[%emt 0:00:22]} 12. c3 {[%emt 0:19:12]} Nd8 {[%emt 0:01:16]} 13. Ba2 {[%emt 0:10:15]} Kh8 {[%emt 0:05:12]} 14. Ng5 {[%emt 0:08:17]} Bxg5 {[%emt 0:09:59]} 15. Bxg5 {[%emt 0:01:33]} Ne6 {[%emt 0:01:07]} 16. Be3 {[%emt 0:11:04]} f5 {[%emt 0:01:12]} 17. f3 {[%emt 0:04:14]} Qd7 {[%emt 0:03:56]} 18. exf5 {[%emt 0:04:01]} Rxf5 {[%emt 0:04:15]} 19. d4 {[%emt 0:00:01]} Raf8 {[%emt 0:07:26]} 20. Qd2 {[%emt 0:00:23]} exd4 {[%emt 0:04:28]} 21. cxd4 {[%emt 0:02:04]} Nf4 {[%emt 0:03:34]} 22. Bxf4 {[%emt 0:01:41]} Rxf4 {[%emt 0:00:07]} 23. Rae1 {[%emt 0:01:58]} g5 {[%emt 0:04:46]} 24. Qc3 {[%emt 0:11:10]} Qg7 {[%emt 0:05:54]} 25. d5 {[%emt 0:03:01]} Qxc3 {[%emt 0:03:55]} 26. bxc3 {[%emt 0:00:01]} Kg7 {[%emt 0:01:44]} 27. Bb3 {[%emt 0:00:48]} R4f5 {[%emt 0:02:07]} 28. Bc2 {[%emt 0:06:06]} R5f7 {[%emt 0:03:05]} 29. Be4 {[%emt 0:01:22]} Re8 {[%emt 0:00:49]} 30. c4 {[%emt 0:03:11]} bxc4 {[%emt 0:03:50]} 31. Rb1 {[%emt 0:00:01]} Ba8 {[%emt 0:00:35]} 32. Rb4 {[%emt 0:04:25]} Re5 {[%emt 0:32:59]} 33. Rd1 {[%emt 0:00:23]} c6 {[%emt 0:00:00]} 34. dxc6 {[%emt 0:00:46]} Rc5 {[%emt 0:00:00]} 35. Rd4 {[%emt 0:00:46]} c3 {[%emt 0:00:00]} 36. Rbc4 {[%emt 0:00:40]} Bxc6 {[%emt 0:00:00]} 37. Rxc5 {[%emt 0:00:34]} dxc5 {[%emt 0:00:00]} 38. Rc4 {[%emt 0:00:02]} Bxe4 {[%emt 0:00:00]} 39. fxe4 {[%emt 0:00:30]} Rc7 {[%emt 0:00:00]} 40. Kf2 {[%emt 0:00:31]} Kf6 {[%emt 0:00:00]} 41. Ke3 {[%emt 0:30:23]} Ke5 {[%emt 0:14:21]} 42. Kd3 {[%emt 0:00:00]} Kf4 {[%emt 0:00:00]} 43. Kxc3 {[%emt 0:00:00]} Ke3 {[%emt 0:21:09]} 44. e5 {[%emt 0:00:00]} h5 {[%emt 0:00:00]} 45. Ra4 {[%emt 0:00:00]} Rc6 {[%emt 0:00:00]} 46. Kc4 {[%emt 0:00:00]} Ke4 {[%emt 0:00:00]} 47. e6 {[%emt 0:00:00]} Rxe6 {[%emt 0:00:00]} 48. Kxc5+ {[%emt 0:00:00]} Ke3 {[%emt 0:00:00]} 49. Kd5 {[%emt 0:00:00]} Rb6 {[%emt 0:00:00]} 50. Ke5 {[%emt 0:00:00]} Kf2 {[%emt 0:00:00]} 51. g4 {[%emt 0:00:00]} h4 {[%emt 0:04:00]} 52. Rc4 {[%emt 0:02:10]} Kg2 {[%emt 0:00:00]} 53. Rc2+ {[%emt 0:03:35]} Kh3 {[%emt 0:00:00]} 54. Kf5 {[%emt 0:00:23]} Rb5+ {[%emt 0:00:00]} 55. Kg6 {[%emt 0:00:04]} Kxg4 {[%emt 0:00:00]} 56. Rc4+ {[%emt 0:01:36]} Kh3 {[%emt 0:00:00]} 57. Rc3+ {[%emt 0:00:30]} Kxh2 {[%emt 0:00:00]} 58. Kh5 {[%emt 0:00:03]} Kg2 {[%emt 0:00:00]} 59. Kg4 {[%emt 0:00:08]} Kf2 {[%emt 0:00:00]} 60. Rc4 {[%emt 0:01:17]} Ra5 {[%emt 0:00:00]} 61. Re4 {[%emt 0:00:30]} Rxa3 {[%emt 0:00:00]} 62. Kxg5 {[%emt 0:00:41]} h3 {[%emt 0:00:00]} 63. Rb4 {[%emt 0:00:24]} h2 {[%emt 0:00:00]} 64. Rb2+ {[%emt 0:00:17]} Kg1 {[%emt 0:00:00]} 65. Rb1+ {[%emt 0:00:06]} Kg2 {[%emt 0:00:00]} 66. Rb2+ {[%emt 0:00:05]} Kh3 {[%emt 0:00:00]} 67. Rb1 {[%emt 0:00:08]} Rg3+ {[%emt 0:00:00]} 68. Kf4 {[%emt 0:00:12]} Rg1 {[%emt 0:00:00]} 69. Rb3+ {[%emt 0:00:11]} Kh4 {[%emt 0:00:00]} 70. Rb7 {[%emt 0:00:09]} Rf1+ {[%emt 0:00:00]} 0-1

[Event "Dutch Open-ch 2019"]
[Site "Dieren"]
[Date "2019.07.25"]
[Round "3.10"]
[White "Munshi, Aditya"]
[Black "Zwirs, Nico"]
[Result "0-1"]
[ECO "C00"]
[WhiteElo "2125"]
[BlackElo "2380"]
[Annotator "NA"]
[PlyCount "82"]
[EventDate "2019.07.23"]
[EventType "swiss"]
[EventCountry "NED"]
[SourceTitle "playchess.com"]
[Source "ChessBase"]
[SourceQuality "1"]
[TimeControl "40/5400+30:1800+30"]

1. e4 {[%emt 0:00:00]} c5 {[%emt 0:00:00]} 2. Nf3 {[%emt 0:00:00]} e6 {[%emt 0:00:00]} 3. g3 {[%emt 0:00:17]} Nc6 {[%emt 0:00:40]} 4. Bg2 {[%emt 0:00:11]} Nf6 {[%emt 0:00:07]} 5. Qe2 {[%emt 0:00:22]} Be7 {[%emt 0:00:34]} 6. c3 {[%emt 0:02:39]} O-O {[%emt 0:02:29]} 7. O-O {[%emt 0:01:58]} d5 {[%emt 0:06:17]} 8. e5 {[%emt 0:01:21]} Nd7 {[%emt 0:00:09]} 9. d4 {[%emt 0:00:29]} b6 {[%emt 0:05:46]} 10. Na3 {[%emt 0:09:16]} a5 {[%emt 0:08:48]} 11. Rd1 {[%emt 0:20:53]} Ba6 {[%emt 0:05:25]} 12. Nb5 {[%emt 0:00:32]} a4 {[%emt 0:00:46]} 13. c4 {[%emt 0:01:23]} dxc4 {[%emt 0:24:17]} 14. Nc3 {[%emt 0:00:13]} Nb4 {[%emt 0:04:55]} 15. d5 {[%emt 0:09:13]} exd5 {[%emt 0:05:25]} 16. Nxd5 {[%emt 0:11:58]} Nd3 {[%emt 0:06:51]} 17. e6 {[%emt 0:06:06]} fxe6 {[%emt 0:02:58]} 18. Qxe6+ {[%emt 0:00:54]} Rf7 {[%emt 0:00:06]} 19. Ne1 {[%emt 0:09:26]} Ra7 {[%emt 0:03:33]} 20. Nxd3 {[%emt 0:08:45]} cxd3 {[%emt 0:02:41]} 21. Be3 {[%emt 0:08:58]} c4 {[%emt 0:08:10]} 22. Nxb6 {[%emt 0:01:15]} Bc5 {[%emt 0:00:40]} 23. Nxd7 {[%emt 0:02:43]} Bxe3 {[%emt 0:00:07]} 24. fxe3 {[%emt 0:00:27]} Qxd7 {[%emt 0:00:29]} 25. Bd5 {[%emt 0:00:02]} Qxe6 {[%emt 0:05:22]} 26. Bxe6 {[%emt 0:00:00]} a3 {[%emt 0:00:07]} 27. bxa3 {[%emt 0:03:00]} c3 {[%emt 0:02:11]} 28. Rac1 {[%emt 0:01:04]} Rac7 {[%emt 0:00:01]} 29. Bb3 {[%emt 0:00:32]} Kf8 {[%emt 0:01:01]} 30. Bxf7 {[%emt 0:00:01]} Kxf7 {[%emt 0:00:11]} 31. Kf2 {[%emt 0:00:18]} Ke6 {[%emt 0:01:44]} 32. e4 {[%emt 0:00:23]} d2 {[%emt 0:00:37]} 33. Rc2 {[%emt 0:00:17]} Bd3 {[%emt 0:00:30]} 34. Rdxd2 {[%emt 0:01:32]} cxd2 {[%emt 0:00:07]} 35. Rxd2 {[%emt 0:00:06]} Rc2 {[%emt 0:00:33]} 36. Rxc2 {[%emt 0:00:07]} Bxc2 {[%emt 0:00:02]} 37. Ke3 {[%emt 0:00:12]} Ke5 {[%emt 0:00:02]} 38. h3 {[%emt 0:00:26]} Bb1 {[%emt 0:00:57]} 39. a4 {[%emt 0:00:06]} Bxa2 {[%emt 0:00:02]} 40. a5 {[%emt 0:00:02]} Bc4 {[%emt 0:00:08]} 41. g4 {[%emt 0:30:01]} g5 {[%emt 0:30:37]} 0-1

[Event "Dutch Open-ch 2019"]
[Site "Dieren"]
[Date "2019.07.25"]
[Round "3.11"]
[White "Neelotpal, Das"]
[Black "Konings, Frans"]
[Result "1/2-1/2"]
[ECO "C88"]
[WhiteElo "2406"]
[BlackElo "2208"]
[Annotator "NA"]
[PlyCount "180"]
[EventDate "2019.07.23"]
[EventType "swiss"]
[EventCountry "NED"]
[SourceTitle "playchess.com"]
[Source "ChessBase"]
[SourceQuality "1"]
[TimeControl "40/5400+30:1800+30"]

1. e4 {[%emt 0:06:52]} e5 {[%emt 0:00:08]} 2. Nf3 {[%emt 0:00:04]} Nc6 {[%emt 0:00:08]} 3. Bb5 {[%emt 0:00:47]} a6 {[%emt 0:00:06]} 4. Ba4 {[%emt 0:00:02]} Nf6 {[%emt 0:00:06]} 5. d3 {[%emt 0:00:03]} b5 {[%emt 0:00:34]} 6. Bb3 {[%emt 0:00:04]} Be7 {[%emt 0:00:25]} 7. O-O {[%emt 0:01:05]} d6 {[%emt 0:00:18]} 8. a3 {[%emt 0:00:19]} O-O {[%emt 0:01:50]} 9. Re1 {[%emt 0:00:17]} Na5 {[%emt 0:02:17]} 10. Ba2 {[%emt 0:00:08]} c5 {[%emt 0:00:05]} 11. Nc3 {[%emt 0:01:23]} Be6 {[%emt 0:01:56]} 12. Ne2 {[%emt 0:04:12]} Bxa2 {[%emt 0:01:04]} 13. Rxa2 {[%emt 0:00:03]} Ne8 {[%emt 0:00:28]} 14. Ng3 {[%emt 0:08:55]} g6 {[%emt 0:06:04]} 15. Bd2 {[%emt 0:04:19]} Nc6 {[%emt 0:01:30]} 16. c3 {[%emt 0:03:00]} Bf6 {[%emt 0:05:37]} 17. a4 {[%emt 0:04:00]} Nc7 {[%emt 0:01:16]} 18. Qe2 {[%emt 0:04:57]} Qc8 {[%emt 0:05:42]} 19. Bh6 {[%emt 0:03:09]} Re8 {[%emt 0:00:53]} 20. h3 {[%emt 0:00:29]} Qe6 {[%emt 0:05:19]} 21. Raa1 {[%emt 0:00:35]} bxa4 {[%emt 0:00:46]} 22. Rxa4 {[%emt 0:06:15]} Reb8 {[%emt 0:00:31]} 23. Rea1 {[%emt 0:01:12]} Rb7 {[%emt 0:04:36]} 24. Nf1 {[%emt 0:01:21]} Rab8 {[%emt 0:01:09]} 25. Bc1 {[%emt 0:00:26]} h5 {[%emt 0:05:13]} 26. Ne3 {[%emt 0:02:09]} Ne7 {[%emt 0:02:19]} 27. Nc4 {[%emt 0:05:03]} Nc6 {[%emt 0:03:11]} 28. Ne3 {[%emt 0:11:31]} Ne7 {[%emt 0:00:20]} 29. Nd2 {[%emt 0:00:51]} Bg5 {[%emt 0:03:27]} 30. Ndc4 {[%emt 0:00:06]} Bxe3 {[%emt 0:00:07]} 31. Qxe3 {[%emt 0:02:31]} Nc6 {[%emt 0:00:56]} 32. Qf3 {[%emt 0:07:25]} Rd8 {[%emt 0:04:41]} 33. Bg5 {[%emt 0:01:47]} Rd7 {[%emt 0:07:11]} 34. Ne3 {[%emt 0:00:10]} Nb8 {[%emt 0:03:22]} 35. g4 {[%emt 0:05:08]} Rxb2 {[%emt 0:04:28]} 36. gxh5 {[%emt 0:00:06]} Kh7 {[%emt 0:02:12]} 37. Ng4 {[%emt 0:02:40]} Ne8 {[%emt 0:00:18]} 38. hxg6+ {[%emt 0:02:33]} fxg6 {[%emt 0:03:15]} 39. Qg3 {[%emt 0:00:58]} Kg8 {[%emt 0:01:58]} 40. d4 {[%emt 0:02:18]} exd4 {[%emt 0:02:09]} 41. cxd4 {[%emt 0:30:08]} cxd4 {[%emt 0:42:38]} 42. Rxd4 {[%emt 0:02:01]} Nc6 {[%emt 0:00:05]} 43. Rd3 {[%emt 0:00:00]} Rdb7 {[%emt 0:00:00]} 44. Kh2 {[%emt 0:00:00]} Rb1 {[%emt 0:00:00]} 45. Rxa6 {[%emt 0:00:00]} Qxe4 {[%emt 0:00:00]} 46. Qf3 {[%emt 0:00:00]} Qxf3 {[%emt 0:00:00]} 47. Rxf3 {[%emt 0:00:00]} R1b6 {[%emt 0:00:00]} 48. Nh6+ {[%emt 0:03:16]} Kh7 {[%emt 0:00:00]} 49. Rxb6 {[%emt 0:00:17]} Rxb6 {[%emt 0:00:00]} 50. Rf7+ {[%emt 0:00:03]} Ng7 {[%emt 0:00:00]} 51. Ng4 {[%emt 0:01:14]} Kg8 {[%emt 0:00:00]} 52. Rc7 {[%emt 0:03:26]} Nh5 {[%emt 0:00:00]} 53. Ne3 {[%emt 0:04:01]} Ne5 {[%emt 0:00:00]} 54. Nd5 {[%emt 0:00:02]} Rb1 {[%emt 0:00:00]} 55. Kg2 {[%emt 0:00:22]} Rd1 {[%emt 0:00:00]} 56. Nf6+ {[%emt 0:01:20]} Nxf6 {[%emt 0:00:00]} 57. Bxf6 {[%emt 0:00:02]} Kf8 {[%emt 0:00:00]} 58. Bg5 {[%emt 0:00:42]} Nf7 {[%emt 0:00:00]} 59. Bc1 {[%emt 0:00:34]} Rd5 {[%emt 0:00:00]} 60. Bb2 {[%emt 0:00:33]} Ne5 {[%emt 0:00:00]} 61. Bc1 {[%emt 0:01:16]} Nf7 {[%emt 0:00:00]} 62. Kg3 {[%emt 0:00:06]} Ke8 {[%emt 0:00:00]} 63. Be3 {[%emt 0:00:10]} Rf5 {[%emt 0:00:00]} 64. Rc8+ {[%emt 0:00:45]} Kd7 {[%emt 0:00:00]} 65. Rg8 {[%emt 0:00:05]} Rf6 {[%emt 0:00:00]} 66. Rg7 {[%emt 0:00:20]} Ke8 {[%emt 0:00:00]} 67. Bd4 {[%emt 0:00:22]} Re6 {[%emt 0:00:00]} 68. Rg8+ {[%emt 0:00:08]} Ke7 {[%emt 0:00:00]} 69. Ra8 {[%emt 0:00:17]} Re4 {[%emt 0:00:33]} 70. Be3 {[%emt 0:00:48]} Re6 {[%emt 0:00:22]} 71. Kf4 {[%emt 0:01:08]} Kd7 {[%emt 0:01:30]} 72. Bd4 {[%emt 0:00:45]} Ke7 {[%emt 0:00:14]} 73. Ra7+ {[%emt 0:00:53]} Ke8 {[%emt 0:00:06]} 74. Ra8+ {[%emt 0:00:51]} Ke7 {[%emt 0:00:05]} 75. h4 {[%emt 0:00:08]} Kd7 {[%emt 0:00:06]} 76. Ra7+ {[%emt 0:00:50]} Ke8 {[%emt 0:00:05]} 77. h5 {[%emt 0:01:01]} gxh5 {[%emt 0:00:07]} 78. Kf5 {[%emt 0:00:03]} Re7 {[%emt 0:02:50]} 79. Ra8+ {[%emt 0:00:03]} Nd8 {[%emt 0:00:03]} 80. Bf6 {[%emt 0:00:26]} Rd7 {[%emt 0:00:08]} 81. Kg5 {[%emt 0:01:34]} d5 {[%emt 0:00:01]} 82. Kxh5 {[%emt 0:00:37]} d4 {[%emt 0:00:03]} 83. Kg4 {[%emt 0:00:52]} d3 {[%emt 0:00:05]} 84. Bxd8 {[%emt 0:00:24]} Rxd8 {[%emt 0:01:02]} 85. Rxd8+ {[%emt 0:00:14]} Kxd8 {[%emt 0:00:03]} 86. Kf3 {[%emt 0:00:02]} Ke7 {[%emt 0:00:04]} 87. Ke3 {[%emt 0:00:12]} Kf6 {[%emt 0:00:03]} 88. Kxd3 {[%emt 0:00:08]} Kf5 {[%emt 0:00:03]} 89. Ke3 {[%emt 0:00:18]} Ke5 {[%emt 0:00:05]} 90. Kf3 {[%emt 0:00:35]} Kf5 {[%emt 0:00:04]} 1/2-1/2